{"text_format":"1","workbook":"xlsx","n_sheets":3,"sheets":["List1","List2","List3"],"not_rendered":{"charts":0,"images":0,"macros":0,"external_links":3,"defined_names":0,"comments":0,"pivot_tables":0},"unopened":[],"bounds":{"document_bytes":16777216,"sheet_cells":100000,"rows_first":2000,"rows_last":500,"rows_between":2000,"halvings":0,"cell_chars":16384,"cell_head_chars":4096},"cells_cut":0,"cells_raw":0,"read":"whole","date_system":"1900"}

{"sheet":"List1","index":0,"n_rows":72,"n_cols":10,"rows_kept":72,"cut":false,"hidden":false,"merged":[]}
[]
[]
["Obec , IČ: Náklo, 00299251"]
[]
["Rozpočtové opatření č. 2 - březen 2022 "]
[]
["V souladu s ustanovením § 16 zákona č. 250/2000 Sb., o rozpočtových pravidlech územních rozpočtů dojde k rozpočtovému"]
["opatření v případě změn rozpočtových prostředků na závazných ukazatelích."]
[]
["Rozpočtové opatření č. 2/2022 (předloženo na ZO 10. 3. 2022) a doplněno při jednání na ZO"]
[]
["PŘÍJMY"]
["PAR","POL","UZ","PARAGRAF","popis","Rozpočet na rok 2022","Rozpočet po změnách","změna ROZP","ROZP po ZMĚNĚ","POZNÁMKA"]
[0,1334,null,null,"Př. Z odvodů za odněží půdy ze zem.půd.fondu dle z.",450000,{"$f":"F14","v":450000},158448.82999999999,{"$f":"H14+G14","v":608448.82999999996}]
[0,4116,null,null,"Ostatní neinvestiční přijaté transfery za SR",0,{"$f":"F15","v":0},844745.69,{"$f":"H15+G15","v":844745.69},"Dotace ZŠ Náklo - modernizace cvičné kuchyňky"]
[6171,2111,null,null,"Př.z posk.služeb, výrobků, prací, výkonů a práv",1000,0,100000,101000,"prodej knih"]
[6171,null,null,"Činnost místní samosprávy",null,76000,null,{"$f":"H16","v":100000},{"$f":"H17+F17","v":176000}]
[null,null,null,"Celkem ZMĚNY v PŘÍJMECH",null,33700619.700000003,null,{"$f":"H14+H15+H17","v":1103194.52},{"$f":"F18+H18","v":34803814.220000006}]
[]
[null,null,null,"Celkem PŘÍJMY",null,{"$f":"F18","v":33700619.700000003},null,{"$f":"H18","v":1103194.52},{"$f":"F20+H20","v":34803814.220000006}]
[]
["VÝDAJE:"]
["PAR","POL","UZ","PARAGRAF","popis","Rozpočet na rok 2022","Rozpočet po změnách","změna ROZP","ROZP po ZMĚNĚ","POZNÁMKA"]
[6171,5169,null,null,"Nákup ostatních služeb",{"$f":"[1]List1!$F$27","v":1500000},{"$f":"[1]List1!$H$27","v":1251897.04},{"$f":"-[1]List1!$G$27","v":248102.96},{"$f":"H24+G24","v":1500000}]
[6171,5171,"",null,"Opravy a udržování ",150000,{"$f":"F25","v":150000},1350000,{"$f":"H25+G25","v":1500000},"Rekonstrukce obecního úřadu"]
[6171,5321,null,null,"Neinvestiční transfery obcím",60000,60000,15000,{"$f":"H26+G26","v":75000},"navýšení Městská policie Štěpánov"]
[6171,5622,null,null,"Neinvestiční půjčené prostředky spolkům",275999,0,{"$f":"192555+213555","v":406110},{"$f":"H27+G27","v":406110},"Návratní finanční výpomoc SDH Lhota nad Moravou a Housátko"]
[6171,6121,null,null,"Budovy, haly a stavby ",0,0,2000000,{"$f":"H28","v":2000000},"Ordinace dětské lékařky"]
[6171,null,null,"Činnost místní samosprávy",null,5427999,null,{"$f":"SUM(H24:H26)+H28+H27","v":4019212.96},{"$f":"H29+F29","v":9447211.9600000009}]
[3113,5336,null,null,"Neinvestiční transfery zřízeným příspěvkovým organizacím",0,0,844745.69,{"$f":"H30","v":844745.69},"Dotace ZŠ Náklo - modernizace cvičné kuchyňky"]
[3113,null,null,"Základní školy",null,null,null,{"$f":"H30","v":844745.69},{"$f":"I30","v":844745.69}]
[3631,6121,null,null,"Budovy, haly a stavby ",20000,{"$f":"[1]List1!$H$46","v":30000},70000,{"$f":"H32+G32","v":100000},"nové lampy"]
[3631,null,null,"Veřejné osvětlení",null,300000,null,{"$f":"H32","v":70000},{"$f":"H33+F33","v":370000}]
[3639,5331,null,null,"neinvestiční příspěvky zřízeným příspěvkovým organizacím",5500000,{"$f":"F34","v":5500000},-188539.76,{"$f":"H34+G34","v":5311460.24},"příspěvek na dotaci Sběrný dvůr - investiční část"]
[3639,6351,null,null,"Invest. transf. zřízeným příspěvkovým organizacím",0,0,188539.76000000004,{"$f":"H35","v":188539.76000000004},"příspěvek na dotaci Sběrný dvůr - investiční část"]
[3639,6130,null,null,"Pozemky",54935.7,59384,1462145.34,{"$f":"H36+G36","v":1521529.34},"výkup pozemků projekt Nad Strání"]
[3639,null,null," Komunální služby a územní rozvoj j.n",null,7667935.700000003,{"$f":"[2]List1!$H$31","v":7692501.9000000032},{"$f":"SUM(H34:H36)","v":1462145.34},{"$f":"H37+G37","v":9154647.2400000039}]
[3612,6121,"",null,"Budovy, haly a stavby ",0,{"$f":"[1]List1!$H$41","v":42882.400000000001},1500000,{"$f":"H38+G38","v":1542882.4},"Rekonstrukce bytového domu Lhota č. 39"]
[3612,null,null,"Bytové hospodářství",null,210000,null,{"$f":"H38","v":1500000},{"$f":"H39+F39","v":1710000}]
[null,null,null,"Celkem ZMĚNY ve VÝDAJÍCH",null,33700619.700000003,null,{"$f":"H39+H37+H33+H29+H31","v":7896103.9900000002},{"$f":"H40+F40","v":41596723.690000005}]
[]
[null,null,null,"Celkem VÝDAJE",null,null,{"$f":"F40","v":33700619.700000003},{"$f":"H40","v":7896103.9900000002},{"$f":"I40","v":41596723.690000005}]
[]
[null,null,null,"Celkem 5XXX"]
[null,null,null,"Celkem 6XXX"]
[]
[]
["FINANCOVÁNÍ"]
["PAR","POL","UZ","PARAGRAF","popis","Rozpočet na rok 2022","Rozpočet po změnách","změna ROZP","ROZP po ZMĚNĚ","POZNÁMKA"]
[null,8115,null,null,"Změny stavů krátkodobých prostředků na bank.účtech",0,null,6792909.4699999997,{"$f":"H50+F50","v":6792909.4699999997},"stav na účtech k 31.12.2021"]
[]
[null,null,null,"Celkem ZMĚNY ve FINANCOVÁNÍ:",null,null,null,null,{"$f":"I50","v":6792909.4699999997}]
[]
[]
[null,null,null,"REKAPITULACE:"]
[]
[null,null,null,"Celkem PŘÍJMY",null,null,{"$f":"F18","v":33700619.700000003},{"$f":"H18","v":1103194.52},{"$f":"H57+G57","v":34803814.220000006}]
[null,null,null,"Celkem FINANCOVÁNÍ:",null,null,0,{"$f":"I52","v":6792909.4699999997},{"$f":"H58+G58","v":6792909.4699999997}]
[null,null,null,"Celkem PŘÍJMY+FINANCOVÁNÍ",null,null,{"$f":"SUM(G57:G58)","v":33700619.700000003},null,{"$f":"I58+I57","v":41596723.690000005}]
[]
[null,null,null,"Celkem VÝDAJE",null,null,{"$f":"F40","v":33700619.700000003},null,{"$f":"I42","v":41596723.690000005}]
[]
[]
["Důvodová zpráva k rozpočtovému opatření č. 2 /2022"]
[]
["Přesun prostředků v rámci nezajištěného výdaje je Čerpán z rezervy obce."]
[]
["Správce rozpočtu : "]
[]
["Starosta obce : "]
[]
["ZO schvaluje dne 10. 3. 2022 rozpočtové opatření č. 2/2022 v předloženém rozsahu."]

{"sheet":"List2","index":1,"n_rows":24,"n_cols":1,"rows_kept":24,"cut":false,"hidden":false,"merged":[]}
["TEXTY PRO FORMULÁŘ ÚPRAVA ROZPOČTU - na začátek kopírují se řádky 3-13"]
["poznámka: Texty, které budou přenášeny z tohoto formuláře, musí být zapsány pouze ve sloupci A"]
[]
[]
["Obec , IČ: Náklo, 00299251"]
[]
["Rozpočtové změny roku 2019 -duben"]
[]
["V souladu s ustanovením § 16 zákona č. 250/2000 Sb., o rozpočtových pravidlech územních rozpočtů dojde k rozpočtovému"]
["opatření v případě změn rozpočtových prostředků na závazných ukazatelích."]
[]
["Rozpočtové opatření č. 1/2019 (předloženo na ZQ 6. 6. 2018) a doplněno při jednání na ZO"]
[]
["TEXTY PRO FORMULÁŘ ÚPRAVA ROZPOČTU - na začátek kopírují se řádky 16-32"]
[]
["Důvodová zpráva k rozpočtovému opatření č. 1/2019"]
[]
["Přesun prostředků v rámci nezajištěného výdaje je Čerpán z rezervy obce."]
[]
["Správce rozpočtu : "]
[]
["Starosta obce : "]
[]
["ZO schvaluje dne 6. 6. 2018 rozpočtové opatření č. 3/2018 v předloženém rozsahu Usnesením č. 1038/1860"]

{"sheet":"List3","index":2,"n_rows":0,"n_cols":0,"rows_kept":0,"cut":false,"hidden":false,"merged":[]}